Cogmind - Beta 13 @@@ ROGUE MODE // 2024.04.03 @ 07:41:20 Player: Scringis Result: Self-destructed Performance ------------- Evolutions (1) 500 Regions Visited (3) 600 Robots Destroyed (19) 95 Value Destroyed (471) 471 Prototype IDs (1) 20 Alien Tech Used (0) 0 Bonus (118) 118 TOTAL SCORE: 1804 Bonus ------- Follower Combat Kills 118 Cogmind --------- Core Integrity 353/400 Matter 286/300 Energy 160/160 System Corruption 0% Temperature Cool (45) Movement Treading (320) Ox2 Location -9/Materials Parts ------- > --- POWER (1) -------- Light Nuclear Core > --- PROPULSION (2) --- Light Treads Light Treads > --- UTILITY (4) ------ Huge Storage Unit Experimental Sensor Array Signal Interpreter Targeting Computer > --- WEAPON (2) ------- Particle Cannon Heavy Battle Rifle > --- INVENTORY (25) --- Light Nuclear Core Medium Storage Unit Compact Matter Pod (150) Heavy EM Pulse Gun Heavy EM Pulse Gun Improved Light Cannon Improved Light Cannon Improved Light Cannon Grenade Launcher Grenade Launcher Datajack Hammer Peak State ------------ > --- POWER ------------ Light Nuclear Core > --- PROPULSION ------- Light Treads Light Treads > --- UTILITY ---------- Huge Storage Unit Experimental Sensor Array Signal Interpreter Targeting Computer > --- WEAPON ----------- Heavy Battle Rifle Improved Light Cannon > --- INVENTORY -------- Light Nuclear Core Medium Storage Unit Compact Matter Pod Heavy EM Pulse Gun Heavy EM Pulse Gun Particle Cannon Improved Light Cannon Improved Light Cannon Grenade Launcher Grenade Launcher Datajack Hammer [Rating: 25] Favorites ----------- Power Light Nuclear Core Engine Light Ion Engine Power Core Light Nuclear Core Propulsion Light Treads Treads Light Treads Utility Huge Storage Unit Device Experimental Sensor Array Storage Huge Storage Unit Processor Targeting Computer Weapon Improved Light Cannon Energy Gun EM Pulse Gun Energy Cannon Particle Cannon Ballistic Gun Assault Rifle Ballistic Cannon Improved Light Cannon Build | -11 -10 -10 -9 ------- Run | Yrd Mat Min Mat Slots Evolved 2 | . . . 2 Power . | . . . . Propulsion . | . . . . Utility 2 | . . . 2 Weapon . | . . . . Parts Attached 26 | 6 11 2 7 Power 5 | 1 2 . 2 Engine 3 | 1 1 . 1 Core 2 | . 1 . 1 Reactor . | . . . . Propulsion 6 | 2 2 . 2 Treads 6 | 2 2 . 2 Leg . | . . . . Wheel . | . . . . Hover . | . . . . Flight . | . . . . Utility 7 | 1 3 1 2 Device 1 | . . 1 . Storage 3 | 1 2 . . Processor 3 | . 1 . 2 Hackware . | . . . . Protection . | . . . . Artifact . | . . . . Weapon 8 | 2 4 1 1 Energy Gun 3 | 2 1 . . Energy Cannon 1 | . . . 1 Ballistic Gun 3 | . 2 1 . Ballistic Cannon 1 | . 1 . . Launcher . | . . . . Special Weapon . | . . . . Impact Weapon . | . . . . Slashing Weapon . | . . . . Piercing Weapon . | . . . . Special Melee Weapon . | . . . . Unidentified Prototypes 1 | . . 1 . Parts Lost 2 | . 1 1 . Power 2 | . 1 1 . Propulsion . | . . . . Utility . | . . . . Weapon . | . . . . Highest Loss Streak 1 | . 1 1 . To Critical Strikes . | . . . . Average Slot Usage (%) 85 | . 84 85 87 Core 4 | . 12 . 6 Treads 27 | . 27 28 20 Device 8 | . . 13 11 Storage 13 | . 14 14 11 Processor 2 | . . . 14 Energy Gun 2 | . 7 . . Ballistic Gun 13 | . 12 14 11 Ballistic Cannon 11 | . 7 14 9 Naked Turns . | . . . . Heaviest Build 94 | 12 91 91 94 Greatest Support 40 | 40 40 40 40 Greatest Overweight (x) 31 | . 3 2 31 Average Overweight (x) 1 | . . 2 2 Largest Inventory Capacity 25 | 8 25 25 25 Average Capacity 19 | 7 9 25 25 Most Carried 13 | 5 11 13 12 Average Carried 9 | 1 6 11 11 Final Capacity 25 | 8 25 25 25 Final Carried 12 | 2 11 12 12 Class Distribution -------------------- 100% | Mutant Dominant Class ---------------- Mutant | -10/Materials Mutant | -10/Mines Mutant | -9/Materials Resources | -11 -10 -10 -9 ----------- Run | Yrd Mat Min Mat Matter Collected 690 | 82 290 145 173 Remotely . | . . . . Salvage Created 740 | . 393 22 325 Parts 32 | . 17 3 12 Haulers Intercepted 2 | . 1 . 1 Recyclers Shooed . | . . . . Parts Field Recycled . | . . . . Retrieved Matter . | . . . . Parts Self-Destructed . | . . . . Prevented . | . . . . Kills | -11 -10 -10 -9 ------- Run | Yrd Mat Min Mat Combat Hostiles Destroyed 12 | . 9 . 3 Guns 9 | . 7 . 2 Cannons 3 | . 2 . 1 Classes Destroyed 9 | . 3 2 4 Worker 1 | . . 1 . Tunneler 1 | . . 1 . Hauler 2 | . 1 . 1 Recycler 2 | . . . 2 Mechanic 1 | . . . 1 Swarmer 1 | . 1 . . Grunt 9 | . 8 . 1 Duelist 1 | . . . 1 Sentry 1 | . . . 1 Best Kill Streak 2 | . 2 1 2 Combat Bots Only 2 | . 2 . 2 Max Kills in Single Turn 2 | . 1 1 2 Gunslinging . | . . . . Exploded . | . . . . Melee . | . . . . Uniques/NPCs Destroyed . | . . . . Combat | -11 -10 -10 -9 -------- Run | Yrd Mat Min Mat Hostile Shots Fired 67 | . 46 1 20 Missed 21 | . 12 1 8 Damage Taken 652 | . 429 39 184 Core 182 | . 135 . 47 Absorbed by Shields . | . . . . Core Remaining (%) 73 | 100 . 46 . Volleys Fired 40 | . 29 . 11 Largest 2 | . 2 . 2 Hottest 101 | . 90 . 101 Shots Fired 82 | . 58 2 22 Gun 61 | . 48 2 11 Cannon 21 | . 10 . 11 Launcher . | . . . . Special . | . . . . Kinetic 55 | . 32 2 21 Thermal 9 | . 8 . 1 Explosive . | . . . . Electromagnetic 18 | . 18 . . Robot Hit Streak 9 | . 9 3 4 Robot Miss Streak 4 | . 4 1 2 Penetration Max . | . . . . Secondary Targets 1 | . 1 . . Max Gunslinging Chain 1 | . 1 . . Shots Hit Robots 52 | . 38 1 13 Core Hits 26 | . 18 1 7 Critical Kills 1 | . . 1 . Critical Parts Destroyed . | . . . . Critical Strikes 2 | . 1 1 . Destroy 1 | . . 1 . Blast 1 | . 1 . . Melee Attacks . | . . . . Impact . | . . . . Slashing . | . . . . Piercing . | . . . . Sneak Attacks . | . . . . Combat Hostiles . | . . . . Follow-up Attacks . | . . . . Damage Inflicted 1039 | 3 657 42 337 Guns 641 | . 423 15 203 Cannons 237 | . 132 . 105 Explosions 41 | . 41 . . Melee . | . . . . Ramming 120 | 3 61 27 29 Kinetic 599 | . 296 15 288 Thermal 149 | . 129 . 20 Explosive . | . . . . Electromagnetic 171 | . 171 . . Impact . | . . . . Slashing . | . . . . Piercing . | . . . . Highest Corruption 3 | . 3 3 . Average Corruption 2 | . 1 3 . Corruption Purged . | . . . . Corruption Blocked . | . . . . Effects 57 | . 5 52 . Message Errors 19 | . . 19 . Matter Fused 15 | . 1 14 . Heat Flow Errors 5 | . 1 4 . Energy Discharges 4 | . 1 3 . Data Loss (minor) 8 | . 1 7 . Data Loss (major) 2 | . . 2 . Misfires 3 | . 1 2 . Alerts 1 | . . 1 . Overload Shots . | . . . . Overflow Damage . | . . . . Projectiles . | . . . . Explosions . | . . . . Melee . | . . . . Knockbacks 3 | . 2 . 1 Impact . | . . . . Kinetic 3 | . 2 . 1 Secondary . | . . . . Self-Inflicted Damage 17 | . 17 . . Shots 1 | . 1 . . Rammed 26 | 4 11 8 3 Targets Rammed 28 | 4 11 9 4 Kicked . | . . . . Crushed 2 | . . 1 1 Highest Temperature 324 | . 324 188 36 Average Temperature 72 | . 83 78 10 Received Heat Transfer 267 | . 222 . 45 Effects 1 | . 1 . . Damage (minor) 1 | . 1 . . Siege Activations . | . . . . Robots Corrupted . | . . . . Combat Hostiles . | . . . . Parts Fried . | . . . . Impact Corruptions . | . . . . Robots Melted . | . . . . Combat Hostiles . | . . . . Parts Melted 3 | . 2 . 1 Heat Transferred 346 | . 309 . 37 Parts Sabotaged . | . . . . Parts Stolen . | . . . . Parts Stripped . | . . . . Power Chain Reactions 1 | . 1 . . Alert | -11 -10 -10 -9 ------- Run | Yrd Mat Min Mat Peak Influence 241 | . 213 11 241 Initial 8 | . . 8 . Average 31 | . 59 . 127 Maximum Alert Level 1 | . 1 . 1 Low Security (%) 96 | 100 96 100 75 Level 1 3 | . 3 . 24 Level 2 . | . . . . Level 3 . | . . . . Level 4 . | . . . . Level 5 . | . . . . High Security . | . . . . Max Security . | . . . . Squads Dispatched 4 | . 3 . 1 Investigation 1 | . 1 . . Extermination . | . . . . Reinforcement 3 | . 2 . 1 Assault . | . . . . Garrison . | . . . . Intercept . | . . . . Searches Triggered . | . . . . Construction Impeded . | . . . . Haulers Reinforced . | . . . . Active Scanning Responses . | . . . . Cargo Convoy Interrupts . | . . . . Stealth | -11 -10 -10 -9 --------- Run | Yrd Mat Min Mat Distress Signals 4 | . 2 . 2 Communications Jammed . | . . . . Distress Signals . | . . . . Times Spotted 43 | . 21 3 19 Peak Tracking Total 8 | . 4 3 8 Tactical Retreats . | . . . . Traps | -11 -10 -10 -9 ------- Run | Yrd Mat Min Mat Traps Triggered 5 | . 5 . . Indirectly . | . . . . Trap Hack Attempts . | . . . . Triggered . | . . . . Disarmed . | . . . . Reprogrammed . | . . . . Reused . | . . . . Traps Extracted . | . . . . Installed . | . . . . Triggered . | . . . . Machines | -11 -10 -10 -9 ---------- Run | Yrd Mat Min Mat Machines Disabled . | . . . . Max in Single Turn . | . . . . Machines Repaired . | . . . . Machines Dismantled . | . . . . Machines Sabotaged . | . . . . Overloaded Fab Kills . | . . . . Hacking | -11 -10 -10 -9 --------- Run | Yrd Mat Min Mat Machines Accessed 3 | . 3 . . Terminals 1 | . 1 . . Fabricators . | . . . . Repair Stations . | . . . . Recycling Units 2 | . 2 . . Scanalyzers . | . . . . Garrison Access . | . . . . Total Hacks 4 | . 4 . . Successful 4 | . 4 . . Failed . | . . . . Catastrophic . | . . . . Database Lockouts . | . . . . Manual . | . . . . Terminals 2 | . 2 . . Fabricators . | . . . . Repair Stations . | . . . . Recycling Units 2 | . 2 . . Scanalyzers . | . . . . Garrison Access . | . . . . Terminal Hacks 2 | . 2 . . Locate Traps 1 | . 1 . . Zone Layout 1 | . 1 . . Fabricator Hacks . | . . . . Repair Station Hacks . | . . . . Recycling Unit Hacks 2 | . 2 . . Report Inventory 2 | . 2 . . Scanalyzer . | . . . . Garrison Access Hacks . | . . . . Unauthorized Hacks . | . . . . Terminals . | . . . . Fabricators . | . . . . Repair Stations . | . . . . Recycling Units . | . . . . Scanalyzers . | . . . . Garrison Access . | . . . . Data Cores Recovered . | . . . . Used . | . . . . Hacking Detections 1 | . 1 . . Full Trace Events . | . . . . Feedback Events . | . . . . Feedback Blocked . | . . . . Robot Schematics Acquired . | . . . . Robots Built . | . . . . Authchips . | . . . . Time . | . . . . Total Robot Build Rating . | . . . . Part Schematics Acquired . | . . . . Parts Built . | . . . . Authchips . | . . . . Time . | . . . . Total Part Build Rating . | . . . . Parts Repaired . | . . . . Time . | . . . . Parts Recycled . | . . . . Recycled Matter . | . . . . Retrieved Matter . | . . . . Retrieved Components . | . . . . Parts Scanalyzed . | . . . . Part Schematics Acquired . | . . . . Parts Damaged . | . . . . Bothacking | -11 -10 -10 -9 ------------ Run | Yrd Mat Min Mat Used RIF Installer . | . . . . Robots Hacked . | . . . . Non-combat . | . . . . Combat . | . . . . Robot Hacks Applied . | . . . . Relay Couplers Released . | . . . . Fabnet Peak Effective % . | . . . . Robots Rewired . | . . . . Allies Hacked . | . . . . Hacks Repelled . | . . . . Allies | -11 -10 -10 -9 -------- Run | Yrd Mat Min Mat Total Allies 4 | . . 4 . Largest Group 4 | . . 4 3 Highest-Rated Group 71 | . . 71 40 Highest-Rated Ally 31 | . . 31 16 Total Orders . | . . . . Ally Attacks 76 | . . . 76 Total Damage 636 | . . . 636 Kills 7 | . . . 7 Allies Corrupted . | . . . . Allies Melted . | . . . . Intel | -11 -10 -10 -9 ------- Run | Yrd Mat Min Mat Robot Analysis Total . | . . . . Derelict Logs Recovered 2 | . . 2 . Drone Launches . | . . . . Drone Recoveries . | . . . . Exploration | -11 -10 -10 -9 ------------- Run | Yrd Mat Min Mat Turns Passed 4670 | 92 1431 2690 457 Spaces Moved 1669 | 57 670 830 112 Core 24 | 17 5 . 2 Treads 1645 | 40 665 830 110 Legs . | . . . . Wheels . | . . . . Hover . | . . . . Flight . | . . . . Fastest Speed 50 | 50 160 320 320 Average Speed 252 | 127 164 320 344 Slowest Speed 1600 | 160 320 320 1600 Overloaded Moves . | . . . . Propulsion Burnouts . | . . . . Robots Hopped . | . . . . Cave-ins Triggered . | . . . . Exploration Rate (%) 46 | 4 70 99 14 Regions Visited 3 Branch Regions 1 Pre-discovered Areas . | . . . . Known Exits Taken . | . . . . Unknown Exits Taken 3 | 1 1 1 . Scrap Searched 1 | . . 1 . Spaces Dug . | . . . . Terrain Destroyed 6 | . 5 . 1 Melee . | . . . . Projectile 2 | . 1 . 1 AOE 4 | . 4 . . Terrain Rammed . | . . . . Walls Destroyed . | . . . . Machines Disabled . | . . . . Actions | -11 -10 -10 -9 --------- Run | Yrd Mat Min Mat Total 2016 | 74 942 847 153 Wait 202 | . 192 . 10 Move 1666 | 56 669 829 112 Hop . | . . . . Pick Up 41 | 8 23 4 6 Fast Attach . | . . . . Attach 22 | 6 9 2 5 Detach . | . . . . Swap 4 | . 2 . 2 Drop 13 | . 7 3 3 Fire 40 | . 29 . 11 Melee . | . . . . Ram . | . . . . Kick . | . . . . Crush 28 | 4 11 9 4 Escape Stasis . | . . . . Rewire . | . . . . Trap . | . . . . Miscellaneous . | . . . . Route ------- -11/Scrapyard -10/Materials (discovered 3 exits: [*Mat x2] / [*Min]) -10/Mines (discovered 3 exits: [*Mat x2] / [*Sub]) -9/Materials History --------- Turn | Location | Event 8 | -11/Scrapyard | Discovered new exit (range 15) 93 | -11/Scrapyard | Entered Materials 314 | -10/Materials | Build established: Mutant 321 | -10/Materials | Discovered new exit (range 15) 1139 | -10/Materials | Discovered new exit (range 13) 1245 | -10/Materials | Core integrity fell below 50% 1414 | -10/Materials | Discovered new exit (range 16) 1524 | -10/Materials | Entered Mines 1604 | -10/Mines | Found a hidden stash of uninstalled traps 1605 | -10/Mines | YI-UF0 nonchalantly dropped a Grenade Launcher on the ground 1652 | -10/Mines | Found a damaged Exp. Sensor Array with a note attached 1659 | -10/Mines | Found Prototype Device 1660 | -10/Mines | Identified Exp. Sensor Array 1729 | -10/Mines | Assisted by bots powering up and referring to "LRC-V3" 2022 | -10/Mines | Learned Materials garrison access intel 2150 | -10/Mines | Received a Mining Laser from a helpful Derelict 2387 | -10/Mines | Discovered new exit (range 15) 2720 | -10/Mines | Discovered new exit (range 14) 2998 | -10/Mines | Discovered new exit (range 13) 3821 | -10/Mines | A weapon hastily lodged in a ceiling crevice suddenly fell to the ground 4214 | -10/Mines | Entered Materials 4214 | -9/Materials | Accompanied by 3 allies 4214 | -9/Materials | Evolved 2 slots: Utility x2 4671 | -9/Materials | Self-destructed Last Messages --------------- Dropped Lgt. Treads. K-01 Serf collects debris. K-01 Serf destroyed. K-01 Serf collects debris. K-01 Serf knocked back. U-05 Engineer builds a Door. Acquired Lgt. Treads. W-16 Scout destroyed. R-06 Scavenger collects Hover Unit. R-06 Scavenger collects Sml. Matter Pod. A-02 Transporter destroyed. M-13 Machinist destroyed. R-06 Scavenger collects Wheel. Acquired Unknown Energy Cannon. Identified Particle Cannon. Acquired 39 matter. Slammed into W-16 Scout. Slammed into K-01 Serf. Acquired 20 matter. W-16 Scout destroyed. Map ----- +----------------------------------------------------+ | """ ####### % #????????????????????????? | | """ #?????### ###????????????????????????? | | #???????# ##?????????????????????????? | | #???????# #??????????????????????????? | | #???????# #??????????????????????????? | | #########+#??????????????????????????? | | ? ? # #??????????????????????????? | | ######### =# #??????????????????????????? | | # =!# """ #??????????????????????????? | | #*% # """""#??????????????????????????? | | +% %+% % """#??????????????????????????? | | ]! #= # """""#??????????????????????????? | | ]! # # """ #??????????????????????????? | | ]! ?# # #??????????????????????????? | | ?# ###########??????????????????????????? | | ??# #????????????????????????????????????? | | ######??# #????????????????????????????????????? | | ????# #????????????????????????????????????? | | ???# #????????????????????????????????????? | | ?" ???# #????????????????????????????????????? | | ?? ??## ##???????????????????????????????????? | | ####+### ! #???????????????????????????????????? | | %%*=%% #???????????????????????????????????? | | % ! != #?????????????????? #####???????????? | | %=== ############### sau ????????? | | ######## =k!]ua]]! * g@ Y ????????? | | ???????# *######### ### ????????? | | ???????# #???????# k#?????? #####???????????? | | ???????#==* //#???????# #???????????????????????? | | ???????#==**//#???????# #???????????????????????? | | ???????########???????# ???????????????????????? | | ??????????????????????# x??????????????????????? | | ??????????????????????# ??????????????????????? | | ??????????????????????# ?????????????????????? | | ??????????????????????# #????????????????????? | | ??????????????????????# #????????????????????? | | ??????????????????????# #????????????????????? | | ??????????????????????# ?????????????????????? | | ??????????????????????? #????????????????????? | | ??????????????????????? ?????????????????????? | | ??????????????????????? ???????????????????????? | | ?????????????????????????????????????????????????? | | ?????????????????????????????????????????????????? | | ?????????????????????????????????????????????????? | | ?????????????????????????????????????????????????? | | ?????????????????????????????????????????????????? | | ?????????????????????????????????????????????????? | | ?????????????????????????????????????????????????? | | ?????????????????????????????????????????????????? | | ?????????????????????????????????????????????????? | +----------------------------------------------------+ Best States ------------- Heat Dissipation 28 Energy Generation 14 Energy Capacity 160 Matter Stores 300 Matter Capacity 300 Sight Range 16 Robot Scan Range 20 Terrain Scan Density 10 Evasion (%) 50 Targeting Accuracy 5 Recoil Reduction 2 Item Schematics ----------------- None Robot Schematics ------------------ None Fabricated ------------ Nothing Alien Tech Used ----------------- None Achievements -------------- None Challenges ------------ None Game ------ Seed EnergyMediumReplicator Manual? 0 Play Time 00:15:45 Cumulative 9.1 hours Start 2024.04.03 @ 07:22:28 End 2024.04.03 @ 07:41:20 Sessions 1 Manual Loads 0 Difficulty Rogue Special Mode None Game No. 30 Rogue 30 Adventurer 0 Explorer 0 Win Type - Total 0 Types 0/0/0/0/0/0/0/0/0 Lore% 15 Gallery% 13 Achievement% 14 Wizard Run 0 Options --------- Layout 1 ASCII 0 Keyboard 0 Movement Arrows Keybinds 0 Fullscreen 1 Font 24/Smallcaps Map View 50x35 Zoom Use 0% Tactical HUD 0 Map Filters NONE Filters NONE Steam 1 RUN: 6dbc6bb8-c25b-4e5a-b609-2b190b76ab8d